Workbook

Sheet المبيعات
A1: تاريخ | B1: كود العميل | C1: أسم العميل | D1: كود الصنف | E1: الصنف | F1: كمية | G1: سعر البيع | L1: باقي
H2: قيمة المباع | I2: الشراء | J2: الجملة | K2: الربح | L2: الصنف
A3: 2022-03-10 | B3: 1 | C3: =IF(B3="","",VLOOKUP(B3,العملاء!A:B,2,0)) -> نقدى 1 | D3: 621 | E3: =IF(D3="","",VLOOKUP(D3,المخزن!A:B,2,0)) -> شبسى 5 ج بالشطة * 12 | F3: 15 | G3: 10 | H3: 10 | I3: =IF(D3="","",VLOOKUP(D3,المخزن!A:D,4,0)) -> 1.666666667 | J3: =IF(D3>0,I3*F3," ") -> 25 | K3: =IF(E3="","",H3-J3) -> -15 | L3: =IF(D3="","",VLOOKUP(D3,المخزن!A:K,8,0)) -> 47
A4: 2022-03-10 | B4: 1 | C4: =IF(B4="","",VLOOKUP(B4,العملاء!A:B,2,0)) -> نقدى 1 | D4: 508 | E4: =IF(D4="","",VLOOKUP(D4,المخزن!A:B,2,0)) -> شيكولاته اتش دى 1 ج * 12 | F4: 2 | G4: 11 | H4: 11 | I4: =IF(D4="","",VLOOKUP(D4,المخزن!A:D,4,0)) -> 3 | J4: 6 | K4: =IF(E4="","",H4-J4) -> 5 | L4: =IF(D4="","",VLOOKUP(D4,المخزن!A:K,8,0)) -> 39
A5: 2022-03-10 | B5: 1 | C5: =IF(B5="","",VLOOKUP(B5,العملاء!A:B,2,0)) -> نقدى 1 | D5: 201 | E5: =IF(D5="","",VLOOKUP(D5,المخزن!A:B,2,0)) -> يسكويت فرى 2 ج ك 6 علبة * 12 | F5: 3 | G5: 12 | H5: 12 | I5: =IF(D5="","",VLOOKUP(D5,المخزن!A:D,4,0)) -> 4 | J5: 12 | K5: =IF(E5="","",H5-J5) -> 0 | L5: =IF(D5="","",VLOOKUP(D5,المخزن!A:K,8,0)) -> 40
A6: 2022-03-10 | B6: 1 | C6: =IF(B6="","",VLOOKUP(B6,العملاء!A:B,2,0)) -> نقدى 1 | D6: 191 | E6: =IF(D6="","",VLOOKUP(D6,المخزن!A:B,2,0)) -> بسكويت فيرى 5 ج *6 | F6: 4 | G6: 13 | H6: 13 | I6: =IF(D6="","",VLOOKUP(D6,المخزن!A:D,4,0)) -> 7.083333333 | J6: 28.33333333 | K6: =IF(E6="","",H6-J6) -> -15.33333333 | L6: =IF(D6="","",VLOOKUP(D6,المخزن!A:K,8,0)) -> 47
A7: 2022-03-10 | B7: 1 | C7: =IF(B7="","",VLOOKUP(B7,العملاء!A:B,2,0)) -> نقدى 1 | D7: 559 | E7: =IF(D7="","",VLOOKUP(D7,المخزن!A:B,2,0)) -> لبان نيمو*48 | F7: 5 | G7: 14 | H7: 14 | I7: =IF(D7="","",VLOOKUP(D7,المخزن!A:D,4,0)) -> 12.5 | J7: 62.5 | K7: =IF(E7="","",H7-J7) -> -48.5 | L7: =IF(D7="","",VLOOKUP(D7,المخزن!A:K,8,0)) -> 6
A8: 2022-03-10 | B8: 1 | C8: =IF(B8="","",VLOOKUP(B8,'[1]العملاء '!A:B,2,0)) -> نقدى | D8: 482 | E8: =IF(D8="","",VLOOKUP(D8,المخزن!A:B,2,0)) -> سجائر يوكس | F8: 6 | G8: 15 | H8: 15 | I8: =IF(D8="","",VLOOKUP(D8,المخزن!A:D,4,0)) -> 21.25 | J8: 127.5 | K8: -112.5 | L8: =IF(D8="","",VLOOKUP(D8,المخزن!A:K,8,0)) -> 16
A9: 2022-03-10 | B9: 1 | C9: =IF(B9="","",VLOOKUP(B9,'[1]العملاء '!A:B,2,0)) -> نقدى | D9: 682 | E9: =IF(D9="","",VLOOKUP(D9,المخزن!A:B,2,0)) -> شبسى جبنه متبلة 2ج * 15 | F9: 7 | G9: 16 | H9: 16 | I9: =IF(D9="","",VLOOKUP(D9,المخزن!A:D,4,0)) -> 1.583333333 | J9: 11.08333333 | K9: 4.916666667 | L9: =IF(D9="","",VLOOKUP(D9,المخزن!A:K,8,0)) -> 56
A10: 2022-03-10 | B10: 1 | C10: =IF(B10="","",VLOOKUP(B10,'[1]العملاء '!A:B,2,0)) -> نقدى | D10: 726 | E10: =IF(D10="","",VLOOKUP(D10,المخزن!A:B,2,0)) -> شبسى طماطم 1 ج * 24 | F10: 8 | G10: 17 | H10: 17 | I10: =IF(D10="","",VLOOKUP(D10,المخزن!A:D,4,0)) -> 2.416666667 | J10: =IF(D10>0,I10*F10," ") -> 19.33333333 | K10: -2.333333333 | L10: =IF(D10="","",VLOOKUP(D10,المخزن!A:K,8,0)) -> 9

Sheet المشتريات
A1: تاريخ | B1: بيــــــــــــــــــان | C1: كود المورد | D1: أسم المورد | E1: كود الصنف | F1: أسم الصنف | H1: سعرالشراء | I1: قيمة
G2: كمية | I2: =SUM(I3:I999) -> 1567.5
A3: 2022-03-01 | E3: 621 | F3: =IF(E3="","",VLOOKUP(E3,المخزن!A:B,2,0)) -> شبسى 5 ج بالشطة * 12 | G3: 24 | H3: =IF(E3="","",VLOOKUP(E3,المخزن!A:D,4,0)) -> 1.666666667 | I3: =IF(F3="","",H3*G3) -> 40
A4: 2022-03-01 | E4: 508 | F4: =IF(E4="","",VLOOKUP(E4,المخزن!A:B,2,0)) -> شيكولاته اتش دى 1 ج * 12 | G4: 12 | H4: =IF(E4="","",VLOOKUP(E4,المخزن!A:D,4,0)) -> 3 | I4: =IF(F4="","",H4*G4) -> 36
A5: 2022-03-01 | E5: 201 | F5: =IF(E5="","",VLOOKUP(E5,المخزن!A:B,2,0)) -> يسكويت فرى 2 ج ك 6 علبة * 12 | G5: 12 | H5: =IF(E5="","",VLOOKUP(E5,المخزن!A:D,4,0)) -> 4 | I5: 48
A6: 2022-03-01 | E6: 191 | F6: =IF(E6="","",VLOOKUP(E6,المخزن!A:B,2,0)) -> بسكويت فيرى 5 ج *6 | G6: 15 | H6: =IF(E6="","",VLOOKUP(E6,المخزن!A:D,4,0)) -> 7.083333333 | I6: 106.25
A7: 2022-03-01 | E7: 559 | F7: =IF(E7="","",VLOOKUP(E7,المخزن!A:B,2,0)) -> لبان نيمو*48 | G7: 15 | H7: =IF(E7="","",VLOOKUP(E7,المخزن!A:D,4,0)) -> 12.5 | I7: 187.5
A8: 2022-03-11 | E8: 482 | F8: =IF(E8="","",VLOOKUP(E8,المخزن!A:B,2,0)) -> سجائر يوكس | G8: 27 | H8: =IF(E8="","",VLOOKUP(E8,المخزن!A:D,4,0)) -> 21.25 | I8: 573.75
A9: 2022-03-11 | E9: 682 | F9: =IF(E9="","",VLOOKUP(E9,المخزن!A:B,2,0)) -> شبسى جبنه متبلة 2ج * 15 | G9: 144 | H9: =IF(E9="","",VLOOKUP(E9,المخزن!A:D,4,0)) -> 1.583333333 | I9: 228
A10: 2022-03-11 | E10: 726 | F10: =IF(E10="","",VLOOKUP(E10,المخزن!A:B,2,0)) -> شبسى طماطم 1 ج * 24 | G10: 144 | H10: =IF(E10="","",VLOOKUP(E10,المخزن!A:D,4,0)) -> 2.416666667 | I10: 348

Sheet المخزن
A1: الصنف | B1: اسم الصنف | C1: رصيد أول المدة | D1: سعر المفرد | E1: قيمة | F1: وارد | G1: صادر | H1: رصيد أخرالمدة | I1: جملة المخزن | J1: متوسط سعر الوحدة | K1: ربح الصنف | M1: البيع
A2: 621 | B2: شبسى 5 ج بالشطة * 12 | C2: 50 | D2: 1.666666667 | E2: =IF(C2+D2>0,D2*C2," ") -> 83.33333333 | F2: =SUMIF([1]المشتريات!E:E,A2,[1]المشتريات!G:G) -> 12 | G2: =SUMIF('المبيعات '!D:D,A2,'المبيعات '!F:F) -> 15 | H2: =(C2++F2)-(G2) -> 47 | I2: =H2*D2 -> 78.33333333 | J2: =IF(C2<>0,D2/1,"") -> 1.666666667 | K2: =SUMIF('[1]المبيعات '!D:D,A2,'[1]المبيعات '!K:K) -> 5.416666667 | M2: 2
A3: 508 | B3: شيكولاته اتش دى 1 ج * 12 | C3: 51 | D3: 3 | E3: 153 | F3: =SUMIF([1]المشتريات!E:E,A3,[1]المشتريات!G:G) -> 0 | G3: =SUMIF('[1]المبيعات '!D:D,A3,'[1]المبيعات '!F:F) -> 12 | H3: =(C3++F3)-(G3) -> 39 | I3: =H3*D3 -> 117 | J3: =IF(C3<>0,D3/1,"") -> 3 | K3: =SUMIF('[1]المبيعات '!D:D,A3,'[1]المبيعات '!K:K) -> 2 | M3: 3
A4: 201 | B4: يسكويت فرى 2 ج ك 6 علبة * 12 | C4: 52 | D4: 4 | E4: 208 | F4: =SUMIF([1]المشتريات!E:E,A4,[1]المشتريات!G:G) -> 0 | G4: =SUMIF('[1]المبيعات '!D:D,A4,'[1]المبيعات '!F:F) -> 12 | H4: 40 | I4: 160 | J4: 4 | K4: =SUMIF('[1]المبيعات '!D:D,A4,'[1]المبيعات '!K:K) -> 3.166666667 | M4: 5
A5: 191 | B5: بسكويت فيرى 5 ج *6 | C5: 53 | D5: 7.083333333 | E5: 375.4166667 | F5: =SUMIF([1]المشتريات!E:E,A5,[1]المشتريات!G:G) -> 0 | G5: =SUMIF('[1]المبيعات '!D:D,A5,'[1]المبيعات '!F:F) -> 6 | H5: 47 | I5: 332.9166667 | J5: 7.083333333 | K5: =SUMIF('[1]المبيعات '!D:D,A5,'[1]المبيعات '!K:K) -> 5 | M5: 10
A6: 559 | B6: لبان نيمو*48 | C6: 54 | D6: 12.5 | E6: 675 | F6: =SUMIF([1]المشتريات!E:E,A6,[1]المشتريات!G:G) -> 0 | G6: =SUMIF('[1]المبيعات '!D:D,A6,'[1]المبيعات '!F:F) -> 48 | H6: 6 | I6: 75 | J6: 12.5 | K6: =SUMIF('[1]المبيعات '!D:D,A6,'[1]المبيعات '!K:K) -> 2 | M6: 15
A7: 482 | B7: سجائر يوكس | C7: 55 | D7: 21.25 | E7: 1168.75 | F7: =SUMIF([1]المشتريات!E:E,A7,[1]المشتريات!G:G) -> 0 | G7: =SUMIF('[1]المبيعات '!D:D,A7,'[1]المبيعات '!F:F) -> 39 | H7: 16 | I7: 340 | J7: 21.25 | K7: =SUMIF('[1]المبيعات '!D:D,A7,'[1]المبيعات '!K:K) -> 31.2 | M7: 25
A8: 682 | B8: شبسى جبنه متبلة 2ج * 15 | C8: 56 | D8: 1.583333333 | E8: 88.66666667 | F8: =SUMIF([1]المشتريات!E:E,A8,[1]المشتريات!G:G) -> 15 | G8: =SUMIF('[1]المبيعات '!D:D,A8,'[1]المبيعات '!F:F) -> 15 | H8: 56 | I8: 88.66666667 | J8: 1.583333333 | K8: =SUMIF('[1]المبيعات '!D:D,A8,'[1]المبيعات '!K:K) -> 3.5 | M8: 2
A9: 726 | B9: شبسى طماطم 1 ج * 24 | C9: 57 | D9: 2.416666667 | E9: 137.75 | F9: =SUMIF([1]المشتريات!E:E,A9,[1]المشتريات!G:G) -> 0 | G9: =SUMIF('[1]المبيعات '!D:D,A9,'[1]المبيعات '!F:F) -> 48 | H9: 9 | I9: 21.75 | J9: 2.416666667 | K9: =SUMIF('[1]المبيعات '!D:D,A9,'[1]المبيعات '!K:K) -> 6 | M9: 3

Sheet العملاء
A1: كود العميل | B1: أسم العميل | C1: حركة الفترة | E1: رصيد أخر المدة
C2: =SUM(C4:C2001) -> 5077.25 | D2: 0 | E2: =SUM(E4:E150) -> 5077.25
C3: مبيعات | D3: سدد | E3: الباقى
A4: 1 | B4: نقدى 1 | C4: =SUMIF('[1]المبيعات '!B:B,A4,'[1]المبيعات '!H:H) -> 4907 | D4: =SUMIF('[1]متحصلات العملاء'!C:C,A4,'[1]متحصلات العملاء'!E:E) -> 0 | E4: =C4-D4 -> 4907
A5: 2 | B5: نقدى 2 | C5: =SUMIF('[1]المبيعات '!B:B,A5,'[1]المبيعات '!H:H) -> 0 | D5: =SUMIF('[1]متحصلات العملاء'!C:C,A5,'[1]متحصلات العملاء'!E:E) -> 0 | E5: =C5-D5 -> 0
A6: 3 | B6: نقدى 3 | C6: =SUMIF('[1]المبيعات '!B:B,A6,'[1]المبيعات '!H:H) -> 15.25 | D6: =SUMIF('[1]متحصلات العملاء'!C:C,A6,'[1]متحصلات العملاء'!E:E) -> 0 | E6: 15.25
A7: 4 | B7: نقدى 4 | C7: =SUMIF('[1]المبيعات '!B:B,A7,'[1]المبيعات '!H:H) -> 0 | D7: =SUMIF('[1]متحصلات العملاء'!C:C,A7,'[1]متحصلات العملاء'!E:E) -> 0 | E7: 0
A8: 5 | B8: نقدى 5 | C8: =SUMIF('[1]المبيعات '!B:B,A8,'[1]المبيعات '!H:H) -> 0 | D8: =SUMIF('[1]متحصلات العملاء'!C:C,A8,'[1]متحصلات العملاء'!E:E) -> 0 | E8: 0
A9: 6 | B9: نقدى 6 | C9: =SUMIF('[1]المبيعات '!B:B,A9,'[1]المبيعات '!H:H) -> 155 | D9: =SUMIF('[1]متحصلات العملاء'!C:C,A9,'[1]متحصلات العملاء'!E:E) -> 0 | E9: 155
